fUST/lending_fUST_20250813
["ID","MTS","AMOUNT","RATE_DAILY","PERIOD"]
[378855078,1755052799433,460.0,0.00029999,120]
[378855079,1755052800780,500.0,0.00029999,120]
[378855080,1755052804986,460.0,0.00029999,120]
[378855081,1755052806900,460.0,0.00029999,120]
[378855082,1755052809151,460.0,0.00029999,120]
[378855083,1755052810643,900.28,0.00029999,120]
[378855084,1755052810763,460.0,0.00029999,120]
[378855085,1755052811331,460.0,0.00029999,120]
[378855086,1755052813328,471.40342533,0.00029999,120]
[378855087,1755052813410,460.0,0.00029999,120]
[378855088,1755052813862,462.34611297,0.00029999,120]
[378855089,1755052815348,460.0,0.00029999,120]
[378855090,1755052816239,446.33808395,0.00029999,120]
[378855091,1755052817393,411.97498815,0.00029999,120]
[378855092,1755052819785,460.0,0.00029999,120]
[378855093,1755052820934,460.0,0.00029999,120]
[378855094,1755052823514,460.0,0.00029999,120]
[378855095,1755052827676,484.59124794,0.00029999,120]
[378855096,1755052827758,460.0,0.00029999,120]
[378855097,1755052827813,460.0,0.00029999,120]
[378855098,1755052830217,460.0,0.00029999,120]
[378855099,1755052830738,460.0,0.00029999,120]
[378855100,1755052835827,460.0,0.00029999,120]
[378855101,1755052836494,460.0,0.00029999,120]
[378855102,1755052837016,462.82339293,0.00029999,120]
[378855103,1755052837919,460.0,0.00029999,120]
[378855104,1755052838758,460.0,0.00029999,120]
[378855105,1755052840256,2185.84,0.00029999,120]
[378855106,1755052841000,460.0,0.00029999,120]
[378855107,1755052841168,460.0,0.00029999,120]
[378855108,1755052843497,460.0,0.00029999,120]
[378855109,1755052846548,460.0,0.00029999,120]
[378855110,1755052847514,461.8544993,0.00029999,120]
[378855111,1755052851387,460.0,0.00029999,120]
[378855112,1755052851745,460.0,0.00029999,120]
[378855113,1755052855652,460.0,0.00029999,120]
[378855114,1755052856872,460.0,0.00029999,120]
[378855115,1755052857112,460.0,0.00029999,120]
[378855116,1755052858609,460.0,0.00029999,120]
[378855117,1755052860420,467.09388631,0.00029999,120]
[378855118,1755052862148,460.0,0.00029999,120]
[378855119,1755052862960,460.0,0.00029999,120]
[378855120,1755052863386,460.0,0.00029999,120]
[378855121,1755052864187,460.0,0.00029999,120]
[378855122,1755052864549,460.0,0.00029999,120]
[378855123,1755052868824,460.0,0.00029999,120]
[378855124,1755052869693,460.0,0.00029999,120]
[378855125,1755052871485,481.2,0.00029999,120]
[378855126,1755052872676,3234.36,0.00029999,120]
[378855127,1755052873136,460.0,0.00029999,120]
[378855128,1755052875986,1516.81,0.00029999,120]
[378855129,1755052881235,460.0,0.00029999,120]
[378855130,1755052887905,460.0,0.00029999,120]
[378855131,1755052888670,466.50861271,0.00029999,120]
[378855132,1755052890770,460.0,0.00029999,120]
[378855133,1755052891579,460.0,0.00029999,120]
[378855134,1755052892671,500.0,0.00029999,120]
[378855135,1755052892933,500.0,0.00029999,120]
[378855136,1755052893089,460.0,0.00029999,120]
[378855137,1755052893174,500.0,0.00029999,120]
[378855138,1755052893438,500.0,0.00029999,120]
[378855139,1755052893721,500.0,0.00029999,120]
[378855140,1755052893978,500.0,0.00029999,120]
[378855141,1755052894222,467.2,0.00029999,120]
[378855142,1755052894997,460.0,0.00029999,120]
[378855143,1755052895052,460.0,0.00029999,120]
[378855144,1755052897411,587.6,0.00029999,120]
[378855145,1755052902513,460.0,0.00029999,120]
[378855146,1755052902879,460.0,0.00029999,120]
[378855147,1755052904078,460.0,0.00029999,120]
[378855148,1755052909019,460.0,0.00029999,120]
[378855149,1755052917243,460.0,0.00029999,120]
[378855150,1755052917557,460.0,0.00029999,120]
[378855151,1755052918386,460.0,0.00029999,120]
[378855152,1755052919809,460.0,0.00029999,120]
[378855153,1755052920939,460.0,0.00029999,120]
[378855154,1755052922857,580.91117028,0.00029999,120]
[378855155,1755052923034,460.0,0.00029999,120]
[378855156,1755052923694,460.0,0.00029999,120]
[378855157,1755052924943,460.0,0.00029999,120]
[378855158,1755052926606,2579.8,0.00029999,120]
[378855159,1755052929576,314.66651881,0.00029999,120]
[378855160,1755052932592,460.0,0.00029999,120]
[378855161,1755052935418,460.0,0.00029999,120]
[378855162,1755052936899,460.0,0.00029999,120]
[378855163,1755052941850,460.0,0.00029999,120]
[378855164,1755052943170,460.0,0.00029999,120]
[378855165,1755052944808,465.27778564,0.00029999,120]
[378855166,1755052946791,1498.74,0.00029999,120]
[378855167,1755052947048,460.0,0.00029999,120]
[378855168,1755052948379,460.0,0.00029999,120]
[378855169,1755052948665,493.26,0.00029999,120]
[378855170,1755052954357,460.0,0.00029999,120]
[378855171,1755052955972,500.0,0.00029999,120]
[378855172,1755052956078,536.66,0.00029999,120]
[378855173,1755052956226,500.0,0.00029999,120]
[378855174,1755052956464,500.0,0.00029999,120]
[378855175,1755052956722,500.0,0.00029999,120]
[378855176,1755052957015,500.0,0.00029999,120]
[378855177,1755052957257,500.0,0.00029999,120]
[378855178,1755052957509,518.4843835,0.00029999,120]
[378855179,1755052958480,460.0,0.00029999,120]
[378855180,1755052959263,460.0,0.00029999,120]
[378855181,1755052960422,460.0,0.00029999,120]
[378855182,1755052966730,1019.21,0.00029999,120]
[378855183,1755052967159,460.0,0.00029999,120]
[378855185,1755052969612,460.0,0.00029999,120]
[378855186,1755052969763,460.0,0.00029999,120]
[378855187,1755052970244,485.7857664,0.00029999,120]
[378855188,1755052970895,460.0,0.00029999,120]
[378855189,1755052972232,460.0,0.00029999,120]
[378855190,1755052972819,460.0,0.00029999,120]
[378855191,1755052973128,460.0,0.00029999,120]
[378855192,1755052974559,460.0,0.00029999,120]
[378855193,1755052975063,460.0,0.00029999,120]
[378855194,1755052977278,460.0,0.00029999,120]
[378855195,1755052979941,465.46448624,0.00029999,120]
[378855196,1755052982562,460.0,0.00029999,120]
[378855197,1755052982899,461.84803881,0.00029999,120]
[378855198,1755052983435,460.0,0.00029999,120]
[378855199,1755052984536,1304.54,0.00029999,120]
[378855200,1755052984873,460.0,0.00029999,120]
[378855201,1755052985003,462.04031915,0.00029999,120]
[378855202,1755052986057,463.30641731,0.00029999,120]
[378855203,1755052990945,460.0,0.00029999,120]
[378855204,1755052994990,460.0,0.00029999,120]
[378855205,1755052999076,460.0,0.00029999,120]
[378855206,1755053000662,309.08962902,0.00029999,120]
[378855207,1755053001716,460.0,0.00029999,120]
[378855208,1755053003177,460.0,0.00029999,120]
[378855209,1755053005702,507.41,0.00029999,120]
[378855210,1755053006033,460.0,0.00029999,120]
[378855211,1755053007871,460.0,0.00029999,120]
[378855212,1755053008640,460.0,0.00029999,120]
[378855213,1755053012848,460.0,0.00029999,120]
[378855214,1755053016734,460.0,0.00029999,120]
[378855215,1755053019377,279.69503639,0.00029999,120]
[378855216,1755053019925,460.0,0.00029999,120]
[378855217,1755053021329,1048.04,0.00029999,120]
[378855218,1755053026348,460.0,0.00029999,120]
[378855219,1755053028546,467.63358942,0.00029999,120]
[378855220,1755053028935,460.0,0.00029999,120]
[378855221,1755053033014,462.21240763,0.00029999,120]
[378855222,1755053034073,480.2168651,0.00029999,120]
[378855223,1755053034266,460.0,0.00029999,120]
[378855224,1755053036028,460.0,0.00029999,120]
[378855225,1755053036568,460.0,0.00029999,120]
[378855226,1755053037183,460.0,0.00029999,120]
[378855227,1755053040067,460.0,0.00029999,120]
[378855228,1755053040868,460.0,0.00029999,120]
[378855229,1755053041119,460.0,0.00029999,120]
[378855230,1755053045831,460.0,0.00029999,120]
[378855231,1755053045948,460.0,0.00029999,120]
[378855232,1755053047294,460.0,0.00029999,120]
[378855233,1755053049428,1010.91,0.00029999,120]
[378855234,1755053049789,463.15236562,0.00029999,120]
[378855235,1755053050240,460.0,0.00029999,120]
[378855236,1755053050936,460.0,0.00029999,120]
[378855237,1755053052983,460.0,0.00029999,120]
[378855238,1755053053257,461.41030493,0.00029999,120]
[378855239,1755053054548,462.83,0.00029999,120]
[378855240,1755053058436,460.0,0.00029999,120]
[378855241,1755053059469,377.10948935,0.00029999,120]
[378855242,1755053059569,998.86,0.00029999,120]
[378855243,1755053061407,460.0,0.00029999,120]
[378855244,1755053062724,460.0,0.00029999,120]
[378855245,1755053063610,460.0,0.00029999,120]
[378855246,1755053064063,460.0,0.00029999,120]
[378855247,1755053064793,460.0,0.00029999,120]
[378855248,1755053064971,5052.6,0.00029999,120]
[378855249,1755053066313,460.0,0.00029999,120]
[378855250,1755053068117,460.0,0.00029999,120]
[378855251,1755053068167,460.0,0.00029999,120]
[378855252,1755053071252,460.0,0.00029999,120]
[378855253,1755053072457,460.0,0.00029999,120]
[378855254,1755053073076,409.43355703,0.00029999,120]
[378855255,1755053075935,460.0,0.00029999,120]
[378855256,1755053076915,255.92979601,0.00029999,120]
[378855257,1755053078170,460.0,0.00029999,120]
[378855258,1755053078236,460.0,0.00029999,120]
[378855259,1755053078883,460.0,0.00029999,120]
[378855260,1755053080551,463.66062171,0.00029999,120]
[378855261,1755053081693,464.887508,0.00029999,120]
[378855262,1755053082033,460.0,0.00029999,120]
[378855263,1755053082942,467.16842683,0.00029999,120]
[378855264,1755053085273,460.0,0.00029999,120]
[378855265,1755053086997,502.20589831,0.00029999,120]
[378855266,1755053088088,641.9,0.00029999,120]
[378855267,1755053089147,969.65,0.00029999,120]
[378855268,1755053089270,460.0,0.00029999,120]
[378855269,1755053089750,402.42365337,0.00029999,120]
[378855270,1755053090503,460.0,0.00029999,120]
[378855271,1755053093389,460.0,0.00029999,120]
[378855272,1755053095678,461.03441972,0.00029999,120]
[378855273,1755053095806,461.46074834,0.00029999,120]
[378855274,1755053097467,460.0,0.00029999,120]
[378855275,1755053100010,899.42,0.00029999,120]
[378855276,1755053100104,460.0,0.00029999,120]
[378855277,1755053101261,320.72753994,0.00029999,120]
[378855278,1755053101357,616.95,0.00029999,120]
[378855279,1755053103105,467.66235202,0.00029999,120]
[378855280,1755053103287,460.0,0.00029999,120]
[378855281,1755053106767,258.02654115,0.00029999,120]
[378855282,1755053107174,506.91,0.00029999,120]
[378855283,1755053107797,460.0,0.00029999,120]
[378855284,1755053108400,460.0,0.00029999,120]
[378855285,1755053110641,460.0,0.00029999,120]
[378855286,1755053111027,460.0,0.00029999,120]
[378855287,1755053111398,460.0,0.00029999,120]
[378855288,1755053113129,462.4121675,0.00029999,120]
[378855289,1755053114752,460.0,0.00029999,120]
[378855290,1755053115002,460.0,0.00029999,120]
[378855291,1755053115060,464.76989529,0.00029999,120]
[378855292,1755053115157,460.0,0.00029999,120]
[378855293,1755053116061,3099.59,0.00029999,120]
[378855294,1755053116913,302.0,0.00029999,120]
[378855295,1755053117222,460.0,0.00029999,120]
[378855296,1755053117437,460.0,0.00029999,120]
[378855297,1755053117771,461.21542735,0.00029999,120]
[378855298,1755053120714,460.0,0.00029999,120]
[378855299,1755053121862,460.0,0.00029999,120]
[378855300,1755053122170,460.0,0.00029999,120]
[378855301,1755053123260,460.0,0.00029999,120]
[378855302,1755053124355,460.0,0.00029999,120]
[378855303,1755053125455,460.0,0.00029999,120]
[378855304,1755053127909,712.06,0.00029999,120]
[378855305,1755053134858,460.0,0.00029999,120]
[378855306,1755053137953,460.0,0.00029999,120]
[378855307,1755053140857,462.45636831,0.00029999,120]
[378855308,1755053142970,460.0,0.00029999,120]
[378855309,1755053145159,464.9819352,0.00029999,120]
[378855310,1755053147833,10000.0,0.00030137,120]
[378855311,1755053148133,460.0,0.00029999,120]
[378855312,1755053148581,460.0,0.00029999,120]
[378855313,1755053150637,329.59387385,0.00029999,120]
[378855314,1755053152632,460.0,0.00029999,120]
[378855315,1755053152892,488.95,0.00029999,120]
[378855316,1755053156854,500.0,0.00029999,120]
[378855317,1755053156982,500.0,0.00029999,120]
[378855318,1755053157249,500.0,0.00029999,120]
[378855319,1755053157516,500.0,0.00029999,120]
[378855320,1755053157685,460.0,0.00029999,120]
[378855321,1755053157766,500.0,0.00029999,120]
[378855322,1755053158070,500.0,0.00029999,120]
[378855323,1755053158334,500.0,0.00029999,120]
[378855324,1755053158604,500.0,0.00029999,120]
[378855325,1755053158851,500.0,0.00029999,120]
[378855326,1755053159133,500.0,0.00029999,120]
[378855327,1755053159432,500.0,0.00029999,120]
[378855328,1755053159699,500.0,0.00029999,120]
[378855329,1755053159876,461.06260914,0.00029999,120]
[378855330,1755053159953,500.0,0.00029999,120]
[378855331,1755053160059,460.0,0.00029999,120]
[378855332,1755053160249,500.0,0.00029999,120]
[378855333,1755053160420,460.0,0.00029999,120]
[378855334,1755053160507,500.0,0.00029999,120]
[378855335,1755053160766,500.0,0.00029999,120]
[378855336,1755053161076,500.0,0.00029999,120]
[378855337,1755053161381,514.72,0.00029999,120]
[378855338,1755053161680,3266.52,0.00029999,120]
[378855339,1755053161977,460.0,0.00029999,120]
[378855340,1755053163020,460.0,0.00029999,120]
[378855341,1755053163479,468.33553261,0.00029999,120]
[378855342,1755053164907,462.5765467,0.00029999,120]
[378855343,1755053167561,460.0,0.00029999,120]
[378855344,1755053169764,460.0,0.00029999,120]
[378855345,1755053170141,460.0,0.00029999,120]
[378855346,1755053170204,468.43482445,0.00029999,120]
[378855347,1755053170543,460.0,0.00029999,120]
[378855348,1755053171247,460.0,0.00029999,120]
[378855349,1755053179699,460.0,0.00029999,120]
[378855350,1755053179899,463.03142756,0.00029999,120]
[378855351,1755053179959,468.68404416,0.00029999,120]
[378855352,1755053180088,460.0,0.00029999,120]
[378855353,1755053182121,460.0,0.00029999,120]
[378855354,1755053184629,460.0,0.00029999,120]
[378855355,1755053185037,463.23506982,0.00029999,120]
[378855356,1755053189809,460.0,0.00029999,120]
[378855357,1755053189875,460.0,0.00029999,120]
[378855358,1755053191419,1740.28,0.00029999,120]
[378855359,1755053191663,460.0,0.00029999,120]
[378855360,1755053192377,460.0,0.00029999,120]
[378855361,1755053192696,463.62037038,0.00029999,120]
[378855362,1755053193153,460.0,0.00029999,120]
[378855363,1755053194167,460.0,0.00029999,120]
[378855364,1755053197187,465.57729401,0.00029999,120]
[378855365,1755053201459,460.0,0.00029999,120]
[378855366,1755053202583,467.5420718,0.00029999,120]
[378855367,1755053202642,580.55293718,0.00029999,120]
[378855368,1755053203452,461.27,0.00029999,120]
[378855369,1755053203712,1266.14,0.00029999,120]
[378855370,1755053206410,460.0,0.00029999,120]
[378855371,1755053208306,460.0,0.00029999,120]
[378855372,1755053209648,462.50009616,0.00029999,120]
[378855373,1755053211570,460.0,0.00029999,120]
[378855374,1755053213871,460.0,0.00029999,120]
[378855375,1755053214610,460.0,0.00029999,120]
[378855376,1755053216125,460.0,0.00029999,120]
[378855377,1755053216914,460.0,0.00029999,120]
[378855378,1755053220187,460.0,0.00029999,120]
[378855379,1755053220543,460.0,0.00029999,120]
[378855380,1755053223727,563.23,0.00029999,120]
[378855381,1755053223951,541.54685052,0.00029999,120]
[378855382,1755053224030,460.0,0.00029999,120]
[378855383,1755053225143,186.56285951,0.00029999,120]
[378855391,1755053229058,463.41470325,0.00029999,120]
[378855392,1755053230056,1667.69,0.00029999,120]
[378855393,1755053230965,460.0,0.00029999,120]
[378855394,1755053231201,1621.68,0.00029999,120]
[378855395,1755053231866,467.90675318,0.00029999,120]
[378855399,1755053233657,460.0,0.00029999,120]
[378855400,1755053237014,460.0,0.00029999,120]
[378855401,1755053238002,470.75169766,0.00029999,120]
[378855402,1755053240039,460.0,0.00029999,120]
[378855404,1755053243796,460.0,0.00029999,120]
[378855405,1755053244699,460.0,0.00029999,120]
[378855406,1755053244760,460.0,0.00029999,120]
[378855407,1755053244942,460.0,0.00029999,120]
[378855408,1755053245671,460.0,0.00029999,120]
[378855409,1755053245984,460.0,0.00029999,120]
[378855410,1755053250458,460.58590432,0.00029999,120]
[378855411,1755053250812,460.0,0.00029999,120]
[378855412,1755053251281,460.0,0.00029999,120]
[378855413,1755053252340,460.0,0.00029999,120]
[378855414,1755053252556,913.27,0.00029999,120]
[378855415,1755053254664,460.0,0.00029999,120]
[378855416,1755053256096,460.0,0.00029999,120]
[378855417,1755053260287,461.11785279,0.00029999,120]
[378855418,1755053263085,460.0,0.00029999,120]
[378855419,1755053264287,460.0,0.00029999,120]
[378855420,1755053264522,460.0,0.00029999,120]
[378855421,1755053267265,478.11,0.00029999,120]
[378855422,1755053267452,1127.88,0.00029999,120]
[378855423,1755053268648,460.0,0.00029999,120]
[378855424,1755053273138,460.0,0.00029999,120]
[378855425,1755053279572,749.14,0.00029999,120]
[378855426,1755053282418,460.0,0.00029999,120]
[378855427,1755053285560,460.0,0.00029999,120]
[378855428,1755053285861,460.0,0.00029999,120]
[378855429,1755053285967,1148.56,0.00029999,120]
[378855430,1755053288731,460.0,0.00029999,120]
[378855431,1755053291899,385.17304618,0.00029999,120]
[378855432,1755053296569,299.15906952,0.00029999,120]
[378855433,1755053296682,460.0,0.00029999,120]
[378855434,1755053296952,460.0,0.00029999,120]
[378855435,1755053300562,460.0,0.00029999,120]
[378855436,1755053300590,3559.925517,0.00017647,2]
[378855437,1755053301510,460.0,0.00029999,120]
[378855438,1755053303122,530.64,0.00029999,120]
[378855439,1755053304531,1291.49,0.00029999,120]
[378855440,1755053305216,461.5281052,0.00029999,120]
[378855441,1755053307149,201.12154083,0.00029999,120]
[378855442,1755053307788,460.0,0.00029999,120]
[378855443,1755053309949,460.0,0.00029999,120]
[378855444,1755053310204,460.0,0.00029999,120]
[378855445,1755053313556,5697.58739856,0.00017689,2]
[378855446,1755053313581,19202.41260144,0.00017689,2]
[378855447,1755053314224,460.0,0.00029999,120]
[378855448,1755053315737,460.0,0.00029999,120]
[378855449,1755053315807,460.0,0.00029999,120]
[378855450,1755053316642,463.27021189,0.00029999,120]
[378855451,1755053319003,275.74026919,0.00029999,120]
[378855452,1755053321554,460.0,0.00029999,120]
[378855453,1755053322304,460.0,0.00029999,120]
[378855454,1755053324587,463.72012954,0.00029999,120]
[378855455,1755053324814,460.0,0.00029999,120]
[378855456,1755053327262,460.0,0.00029999,120]
[378855457,1755053327422,460.0,0.00029999,120]
[378855458,1755053329810,271.93691518,0.00029999,120]
[378855459,1755053329968,460.0,0.00029999,120]
[378855460,1755053330276,783.0,0.00029999,120]
[378855461,1755053330779,460.0,0.00029999,120]
[378855462,1755053331357,615.15,0.00029999,120]
[378855463,1755053332531,4933.15,0.00029999,120]
[378855464,1755053334983,460.0,0.00029999,120]
[378855465,1755053338591,460.0,0.00029999,120]
[378855466,1755053339454,479.15250816,0.00029999,120]
[378855467,1755053340151,460.0,0.00029999,120]
[378855468,1755053341362,460.0,0.00029999,120]
[378855469,1755053341465,460.0,0.00029999,120]
[378855470,1755053349029,460.0,0.00029999,120]
[378855511,1755053352191,460.0,0.00029999,120]
[378855512,1755053352955,460.0,0.00029999,120]
[378855516,1755053354976,460.0,0.00029999,120]
[378855517,1755053355806,929.25,0.00029999,120]
[378855527,1755053359853,460.0,0.00029999,120]
[378855529,1755053361087,460.0,0.00029999,120]
[378855530,1755053363695,371.6513522,0.00029999,120]
[378855532,1755053364407,460.0,0.00029999,120]
[378855533,1755053364849,460.0,0.00029999,120]
[378855535,1755053370515,460.0,0.00029999,120]
[378855536,1755053371202,461.85352968,0.00029999,120]
[378855537,1755053371983,460.0,0.00029999,120]
[378855538,1755053372420,2970.45,0.00029999,120]
[378855539,1755053376177,545.58,0.00029999,120]
[378855540,1755053378596,460.0,0.00029999,120]
[378855541,1755053378655,460.0,0.00029999,120]
[378855542,1755053386369,7895.7,0.00029999,120]
[378855543,1755053388284,500.0,0.00029999,120]
[378855544,1755053388699,500.0,0.00029999,120]
[378855545,1755053388799,500.0,0.00029999,120]
[378855546,1755053389070,500.0,0.00029999,120]
[378855547,1755053389343,500.0,0.00029999,120]
[378855548,1755053389606,500.0,0.00029999,120]
[378855549,1755053389865,467.26711318,0.00029999,120]
[378855550,1755053390300,1325.26,0.00029999,120]
[378855551,1755053391715,581.15,0.00029999,120]
[378855552,1755053395302,460.0,0.00029999,120]
[378855553,1755053396072,460.92214198,0.00029999,120]
[378855554,1755053396320,460.0,0.00029999,120]
[378855555,1755053398154,460.0,0.00029999,120]
[378855556,1755053400410,468.58,0.00029999,120]
[378855557,1755053405841,460.0,0.00029999,120]
[378855558,1755053407023,461.49785638,0.00029999,120]
[378855559,1755053410904,460.0,0.00029999,120]
[378855560,1755053411487,460.0,0.00029999,120]
[378855561,1755053413150,460.0,0.00029999,120]
[378855562,1755053417629,264.75515117,0.00029999,120]
[378855563,1755053421041,460.0,0.00029999,120]
[378855564,1755053421251,469.65142029,0.00029999,120]
[378855565,1755053422686,460.0,0.00029999,120]
[378855566,1755053425306,460.0,0.00029999,120]
[378855567,1755053429692,460.0,0.00029999,120]
[378855568,1755053430938,464.79503575,0.00029999,120]
[378855573,1755053431630,466.39545847,0.00029999,120]
[378855670,1755053435427,2949.76,0.00029999,120]
[378855671,1755053435906,460.0,0.00029999,120]
[378855672,1755053436545,460.0,0.00029999,120]
[378855679,1755053437752,448.98755953,0.00029999,120]
[378855709,1755053438090,-10000.0,0.00018319,2]
[378855711,1755053438099,-300.0,0.00018472,2]
[378855713,1755053438109,-2216.54944805,0.0001848,2]
[378855714,1755053438118,-1760.0,0.0001858,2]
[378855716,1755053438127,-1169.40384014,0.0001858,2]
[378855718,1755053438137,-200.0,0.00018841,15]
[378855720,1755053438147,-200.0,0.00018841,15]
[378855722,1755053438156,-200.0,0.00018841,15]
[378855724,1755053438166,-200.0,0.00018841,15]
[378855726,1755053438175,-1604.89157508,0.00018847,2]
[378855727,1755053438184,-271.0,0.00018971,2]
[378855729,1755053438194,-209.0,0.00019059,2]
[378855731,1755053438205,-237.0,0.00019162,2]
[378855733,1755053438214,-237.0,0.00019163,2]
[378855735,1755053438223,-271.0,0.00019192,2]
[378855737,1755053438233,-237.0,0.00019227,2]
[378855739,1755053438242,-181.62773736,0.00019272,2]
[378855741,1755053438251,-1178.08739937,0.0001928,2]
[378855744,1755053438267,-4865.81604791,0.0001928,2]
[378855746,1755053438276,-209.0,0.00019291,2]
[378855747,1755053438285,-237.0,0.000193,2]
[378855749,1755053438295,-500.0,0.00019371,2]
[378855751,1755053438304,-176.91721854,0.00019371,2]
[378855753,1755053438313,-376.06011187,0.00019371,2]
[378855755,1755053438323,-184.69745677,0.00019371,2]
[378855756,1755053438332,-500.0,0.00019371,2]
[378855758,1755053438342,-450.66165488,0.00019371,2]
[378855760,1755053438351,-518.11702075,0.00019372,2]
[378855762,1755053438360,-680.30888314,0.00019372,2]
[378855764,1755053438370,-500.0,0.00019372,2]
[378855766,1755053438380,-680.30888314,0.00019372,2]
[378855768,1755053438389,-1.61202335,0.00019372,2]
[378855770,1755053438405,-678.69685979,0.00019372,2]
[378855772,1755053438414,-219.53542441,0.00019372,2]
[378855774,1755053438426,-460.77345873,0.00019372,2]
[378855776,1755053438435,-40.72284127,0.00019372,2]
[378855778,1755053438446,-142.4868578,0.00019372,2]
[378855779,1755053438455,-281.30481151,0.00019372,2]
[378855781,1755053438467,-399.00407163,0.00019372,2]
[378855783,1755053438476,-680.30888314,0.00019372,2]
[378855784,1755053438486,-680.30888314,0.00019372,2]
[378855786,1755053438495,-680.30888314,0.00019372,2]
[378855788,1755053438505,-680.30888314,0.00019372,2]
[378855790,1755053438514,-680.30888314,0.00019372,2]
[378855791,1755053438524,-680.30888314,0.00019372,2]
[378855793,1755053438533,-680.30888314,0.00019372,2]
[378855795,1755053438542,-680.30888314,0.00019372,2]
[378855797,1755053438551,-680.30888314,0.00019372,2]
[378855799,1755053438561,-680.30888314,0.00019372,2]
[378855800,1755053438569,-680.30888314,0.00019372,2]
[378855802,1755053438579,-680.30888314,0.00019372,2]
[378855804,1755053438588,-680.30888314,0.00019372,2]
[378855806,1755053438597,-680.30888314,0.00019372,2]
[378855808,1755053438607,-680.30888314,0.00019372,2]
[378855810,1755053438616,-728.9023748,0.00019372,2]
[378855812,1755053438625,-728.9023748,0.00019372,2]
[378855814,1755053438634,-728.9023748,0.00019372,2]
[378855815,1755053438643,-728.9023748,0.00019372,2]
[378855817,1755053438652,-728.9023748,0.00019372,2]
[378855819,1755053438661,-728.9023748,0.00019372,2]
[378855820,1755053438672,-728.9023748,0.00019372,2]
[378855821,1755053438681,-500.0,0.00019373,2]
[378855822,1755053438691,-500.0,0.00019373,2]
[378855823,1755053438701,-153.692617,0.00019373,2]
[378855824,1755053438711,-151.0,0.00019373,2]
[378855825,1755053438720,-370000.0,0.00019373,2]
[378855826,1755053438730,-237.0,0.0001938,2]
[378855827,1755053438740,-540.82172174,0.00019384,2]
[378855828,1755053438749,-237.0,0.00019402,2]
[378855830,1755053438759,-151.0,0.00019462,2]
[378855832,1755053438769,-151.0,0.00019462,2]